[Event "BPB Limburg Open 2019 Group A"]
[Site "Maastricht, Netherlands"]
[Date "2019.06.07"]
[Round "1.1"]
[White "Bok, Benjamin"]
[Black "Barzen, Pascal"]
[Result "1-0"]
[TimeControl "2h + 15 sec/move"]
[WhiteFideId "1017063"]
[BlackFideId "24653497"]
[WhiteElo "2638"]
[BlackElo "2292"]

1. c4 {[%clk 02:00:29]} {[%emt 01:43:25]} e5 {[%clk 02:00:17]} {[%emt
00:00:35]} 2. g3 {[%clk 02:00:36]} {[%emt 00:00:08]} Nc6 {[%clk 02:00:23]}
{[%emt 00:00:09]} 3. Bg2 {[%clk 02:00:45]} {[%emt 00:00:06]} Bc5 {[%clk
02:00:13]} {[%emt 00:00:25]} 4. Nc3 {[%clk 02:00:54]} {[%emt 00:00:06]} d6
{[%clk 01:59:14]} {[%emt 00:01:14]} 5. e3 {[%clk 01:59:41]} {[%emt 00:01:27]}
a6 {[%clk 01:58:09]} {[%emt 00:01:21]} 6. Nge2 {[%clk 01:59:42]} {[%emt
00:00:13]} h5 {[%clk 01:57:51]} {[%emt 00:00:33]} 7. d4 {[%clk 01:58:58]}
{[%emt 00:00:59]} Ba7 {[%clk 01:56:49]} {[%emt 00:01:17]} 8. h3 {[%clk
01:55:33]} {[%emt 00:03:40]} h4 {[%clk 01:54:29]} {[%emt 00:02:34]} 9. g4
{[%clk 01:54:37]} {[%emt 00:01:11]} f5 {[%clk 01:53:16]} {[%emt 00:01:28]} 10.
d5 {[%clk 01:39:03]} {[%emt 00:15:49]} Nb8 {[%clk 01:48:39]} {[%emt 00:04:51]}
11. gxf5 {[%clk 01:37:45]} {[%emt 00:01:34]} Bxf5 {[%clk 01:48:36]} {[%emt
00:00:19]} 12. e4 {[%clk 01:35:24]} {[%emt 00:02:35]} Bg6 {[%clk 01:47:27]}
{[%emt 00:01:24]} 13. Qd3 {[%clk 01:07:44]} {[%emt 00:27:55]} Nd7 {[%clk
01:44:42]} {[%emt 00:03:00]} 14. Be3 {[%clk 01:06:02]} {[%emt 00:01:57]} Bxe3
{[%clk 01:39:53]} {[%emt 00:05:04]} 15. Qxe3 {[%clk 01:05:58]} {[%emt
00:00:19]} Ngf6 {[%clk 01:38:16]} {[%emt 00:01:51]} 16. f4 {[%clk 00:54:06]}
{[%emt 00:12:08]} Bf7 {[%clk 01:17:37]} {[%emt 00:20:53]} 17. f5 {[%clk
00:45:56]} {[%emt 00:08:25]} g6 {[%clk 01:15:02]} {[%emt 00:02:50]} 18. fxg6
{[%clk 00:45:05]} {[%emt 00:01:06]} Bxg6 {[%clk 01:14:34]} {[%emt 00:00:42]} 19.
Bf3 {[%clk 00:41:46]} {[%emt 00:03:34]} Qe7 {[%clk 01:12:00]} {[%emt 00:02:49]}
20. O-O-O {[%clk 00:38:08]} {[%emt 00:03:53]} O-O-O {[%clk 01:02:30]} {[%emt
00:09:45]} 21. Rhg1 {[%clk 00:36:50]} {[%emt 00:01:33]} Bh5 {[%clk 00:59:44]}
{[%emt 00:03:01]} 22. Bxh5 {[%clk 00:31:27]} {[%emt 00:05:38]} Nxh5 {[%clk
00:59:24]} {[%emt 00:00:34]} 23. Rdf1 {[%clk 00:30:43]} {[%emt 00:00:59]} Rdf8
{[%clk 00:58:29]} {[%emt 00:01:10]} 24. Kd2 {[%clk 00:24:27]} {[%emt 00:06:31]}
Kb8 {[%clk 00:52:40]} {[%emt 00:06:03]} 25. Rxf8+ {[%clk 00:19:08]} {[%emt
00:05:35]} Qxf8 {[%clk 00:47:27]} {[%emt 00:05:28]} 26. Rg5 {[%clk 00:14:37]}
{[%emt 00:04:45]} Nc5 {[%clk 00:45:08]} {[%emt 00:02:35]} 27. Rf5 {[%clk
00:13:26]} {[%emt 00:01:26]} Nf6 {[%clk 00:32:56]} {[%emt 00:12:26]} 28. b4
{[%clk 00:10:39]} {[%emt 00:03:02]} Ncd7 {[%clk 00:31:59]} {[%emt 00:01:12]} 29.
Kc2 {[%clk 00:07:57]} {[%emt 00:02:58]} b6 {[%clk 00:24:53]} {[%emt 00:07:21]}
30. Nb1 {[%clk 00:03:01]} {[%emt 00:05:11]} Qg7 {[%clk 00:24:41]} {[%emt
00:00:27]} 31. Nd2 {[%clk 00:03:11]} {[%emt 00:00:05]} Qg6 {[%clk 00:20:33]}
{[%emt 00:04:24]} 32. Qg5 {[%clk 00:02:08]} {[%emt 00:01:17]} Rg8 {[%clk
00:18:11]} {[%emt 00:02:37]} 33. Qxg6 {[%clk 00:00:20]} {[%emt 00:02:04]} Rxg6
{[%clk 00:18:21]} {[%emt 00:00:04]} 34. Rf2 {[%clk 00:00:34]} {[%emt 00:00:01]}
Nh5 {[%clk 00:14:03]} {[%emt 00:04:33]} 35. Nf3 {[%clk 00:00:42]} {[%emt
00:00:07]} Rf6 {[%clk 00:13:38]} {[%emt 00:00:41]} 36. Kd3 {[%clk 00:00:49]}
{[%emt 00:00:08]} b5 {[%clk 00:11:35]} {[%emt 00:02:19]} 37. cxb5 {[%clk
00:00:39]} {[%emt 00:00:25]} axb5 {[%clk 00:11:48]} {[%emt 00:00:01]} 38. Ke3
{[%clk 00:00:21]} {[%emt 00:00:33]} Nb6 {[%clk 00:11:33]} {[%emt 00:00:30]} 39.
Nd2 {[%clk 00:00:22]} {[%emt 00:00:14]} Rg6 {[%clk 00:10:57]} {[%emt 00:00:51]}
40. Rf5 {[%clk 00:00:21]} {[%emt 00:00:15]} Ng3 {[%clk 00:10:43]} {[%emt
00:00:29]} 41. Rf8+ {[%clk 00:00:26]} {[%emt 00:00:10]} Kb7 {[%clk 00:10:54]}
{[%emt 00:00:04]} 42. Nc3 {[%clk 00:00:25]} {[%emt 00:00:16]} Nc4+ {[%clk
00:09:16]} {[%emt 00:01:53]} 43. Nxc4 bxc4 {[%clk 00:09:30]} 44. Rf7 {[%clk
00:00:26]} {[%emt 00:00:28]} Nh5 {[%clk 00:09:10]} {[%emt 00:00:34]} 45. Nb5
{[%clk 00:00:21]} {[%emt 00:00:20]} Rg3+ {[%clk 00:08:47]} {[%emt 00:00:38]} 46.
Kd2 {[%clk 00:00:21]} {[%emt 00:00:15]} Rxh3 {[%clk 00:06:21]} {[%emt
00:02:41]} 47. Rxc7+ {[%clk 00:00:29]} {[%emt 00:00:09]} Kb6 {[%clk 00:05:33]}
{[%emt 00:01:03]} 48. a4 {[%clk 00:00:37]} {[%emt 00:00:07]} Rd3+ {[%clk
00:04:39]} {[%emt 00:01:08]} 49. Kc2 {[%clk 00:00:31]} {[%emt 00:00:22]} h3
{[%clk 00:04:27]} {[%emt 00:00:27]} 50. Rc6+ {[%clk 00:00:24]} {[%emt
00:00:22]} Kb7 {[%clk 00:04:37]} {[%emt 00:00:06]} 51. a5 {[%clk 00:00:20]}
{[%emt 00:00:19]} h2 {[%clk 00:01:33]} {[%emt 00:03:18]} 52. a6+ {[%clk
00:00:20]} {[%emt 00:00:15]} Kb8 {[%clk 00:01:47]} 53. a7+ {[%clk 00:00:21]}
{[%emt 00:00:13]} Kb7 {[%clk 00:02:01]} 54. Rc7+ {[%clk 00:00:33]} {[%emt
00:00:04]} Kb6 {[%emt 00:00:15]} 1-0

[Event "BPB Limburg Open 2019 Group A"]
[Site "Maastricht, Netherlands"]
[Date "2019.06.07"]
[Round "1.2"]
[White "Visser, Henk-Jan"]
[Black "Donchenko, Alexander"]
[Result "0-1"]
[TimeControl "2h + 15 sec/move"]
[WhiteFideId "1010204"]
[BlackFideId "24603295"]
[WhiteElo "2249"]
[BlackElo "2618"]

1. e4 {[%clk 02:00:24]} {[%emt 00:00:04]} c5 {[%clk 02:00:12]} {[%emt
00:00:19]} 2. Nf3 {[%clk 02:00:33]} {[%emt 00:00:06]} d6 {[%clk 02:00:23]}
{[%emt 00:00:05]} 3. d4 {[%clk 02:00:36]} {[%emt 00:00:12]} cxd4 {[%clk
02:00:26]} {[%emt 00:00:12]} 4. Nxd4 {[%clk 02:00:43]} {[%emt 00:00:07]} Nf6
{[%clk 02:00:36]} {[%emt 00:00:06]} 5. Nc3 {[%clk 02:00:43]} {[%emt 00:00:15]}
a6 {[%clk 02:00:46]} {[%emt 00:00:06]} 6. Be3 {[%clk 02:00:42]} {[%emt
00:00:15]} e5 {[%clk 02:00:39]} {[%emt 00:00:22]} 7. Nb3 {[%clk 02:00:43]}
{[%emt 00:00:12]} Be6 {[%clk 02:00:43]} {[%emt 00:00:11]} 8. f3 {[%clk
02:00:42]} {[%emt 00:00:15]} h5 {[%clk 02:00:26]} {[%emt 00:00:33]} 9. Qd2
{[%clk 02:00:00]} {[%emt 00:00:57]} Nbd7 {[%clk 02:00:22]} {[%emt 00:00:19]} 10.
O-O-O {[%clk 01:59:17]} {[%emt 00:00:57]} Be7 {[%clk 01:56:59]} {[%emt
00:03:39]} 11. Kb1 {[%clk 01:55:56]} {[%emt 00:03:36]} Qc7 {[%clk 01:52:08]}
{[%emt 00:05:06]} 12. h3 {[%clk 01:54:41]} {[%emt 00:01:29]} b5 {[%clk
01:49:17]} {[%emt 00:03:07]} 13. Bd3 {[%clk 01:51:04]} {[%emt 00:03:51]} h4
{[%clk 01:39:18]} {[%emt 00:10:14]} 14. f4 {[%clk 01:50:08]} {[%emt 00:01:11]}
b4 {[%clk 01:33:30]} {[%emt 00:06:04]} 15. Ne2 {[%clk 01:44:43]} {[%emt
00:05:40]} a5 {[%clk 01:31:55]} {[%emt 00:01:51]} 16. Rhe1 {[%clk 01:22:06]}
{[%emt 00:22:52]} Qc6 {[%clk 01:25:08]} {[%emt 00:07:02]} 17. Ng1 {[%clk
00:27:53]} {[%emt 00:54:27]} a4 {[%clk 01:16:02]} {[%emt 00:09:22]} 18. Nc1
{[%clk 00:26:58]} {[%emt 00:01:10]} b3 {[%clk 01:15:16]} {[%emt 00:01:01]} 19.
Bf2 {[%clk 00:14:59]} {[%emt 00:12:14]} Nc5 {[%clk 01:02:29]} {[%emt 00:13:02]}
20. Bxc5 {[%clk 00:08:38]} {[%emt 00:06:36]} Qxc5 {[%clk 01:01:22]} {[%emt
00:01:22]} 21. f5 {[%clk 00:07:22]} {[%emt 00:01:32]} bxa2+ {[%clk 00:57:51]}
{[%emt 00:03:46]} 22. Ka1 {[%clk 00:07:26]} {[%emt 00:00:10]} Bd7 {[%clk
00:57:18]} {[%emt 00:00:48]} 23. Nxa2 {[%clk 00:04:46]} {[%emt 00:02:55]} O-O
{[%clk 00:46:24]} {[%emt 00:11:10]} 24. Ne2 {[%clk 00:02:36]} {[%emt 00:02:25]}
Bc6 {[%clk 00:37:48]} {[%emt 00:08:50]} 25. Nec3 {[%clk 00:02:39]} {[%emt
00:00:12]} Rfb8 {[%clk 00:36:23]} {[%emt 00:01:40]} 26. g3 {[%clk 00:02:14]}
{[%emt 00:00:41]} hxg3 {[%clk 00:21:33]} {[%emt 00:15:05]} 27. Rg1 {[%clk
00:01:47]} {[%emt 00:00:41]} Qf2 {[%clk 00:19:43]} {[%emt 00:02:04]} 28. Qc1
{[%clk 00:01:37]} {[%emt 00:00:25]} Nh5 {[%clk 00:17:49]} {[%emt 00:02:09]} 29.
Rdf1 {[%clk 00:01:48]} {[%emt 00:00:05]} Qb6 {[%clk 00:16:16]} {[%emt
00:01:48]} 30. Be2 {[%clk 00:00:58]} {[%emt 00:01:06]} Nf4 {[%clk 00:16:16]}
{[%emt 00:00:14]} 31. Rxg3 {[%clk 00:00:59]} {[%emt 00:00:14]} Bf6 {[%clk
00:15:33]} {[%emt 00:00:57]} 32. Bc4 {[%clk 00:01:00]} {[%emt 00:00:15]} Ra7
{[%clk 00:14:40]} {[%emt 00:01:08]} 33. Rd1 {[%clk 00:01:02]} {[%emt 00:00:13]}
Qc5 {[%clk 00:12:36]} {[%emt 00:02:19]} 34. Nd5 {[%clk 00:01:16]} {[%emt
00:00:01]} Bxd5 {[%clk 00:11:55]} {[%emt 00:00:56]} 35. Bxd5 {[%clk 00:01:05]}
{[%emt 00:00:26]} Ne2 {[%clk 00:12:01]} {[%emt 00:00:08]} 36. Qe3 {[%clk
00:00:49]} {[%emt 00:00:31]} Nxg3 {[%clk 00:11:20]} {[%emt 00:00:56]} 37. Qxg3
{[%clk 00:01:02]} {[%emt 00:00:03]} Qxc2 {[%clk 00:11:21]} {[%emt 00:00:14]} 38.
Rb1 {[%clk 00:01:04]} {[%emt 00:00:13]} Rb3 {[%clk 00:09:39]} {[%emt 00:01:57]}
39. Qg1 {[%clk 00:01:18]} {[%emt 00:00:01]} Ra5 {[%clk 00:09:33]} {[%emt
00:00:20]} 40. Qd1 {[%clk 00:00:42]} {[%emt 00:00:51]} Qxd1 {[%clk 00:08:49]}
{[%emt 00:00:59]} 41. Rxd1 {[%clk 00:00:54]} {[%emt 00:00:02]} Rxh3 {[%clk
00:08:55]} {[%emt 00:00:09]} 42. Nb4 {[%clk 00:00:31]} {[%emt 00:00:39]} Bg5
{[%clk 00:08:25]} {[%emt 00:00:45]} 43. Rg1 {[%clk 00:00:31]} {[%emt 00:00:15]}
Be3 {[%clk 00:08:20]} {[%emt 00:00:19]} 44. Rg2 {[%clk 00:00:31]} {[%emt
00:00:15]} Kf8 {[%clk 00:07:28]} {[%emt 00:01:07]} 45. Ka2 {[%clk 00:00:38]}
{[%emt 00:00:09]} Rb5 {[%clk 00:06:48]} {[%emt 00:00:54]} 46. Nc2 {[%clk
00:00:34]} {[%emt 00:00:20]} Bc5 {[%clk 00:06:11]} {[%emt 00:00:51]} 47. Bc4
{[%clk 00:00:42]} {[%emt 00:00:08]} Rb8 {[%clk 00:06:07]} {[%emt 00:00:19]} 48.
Rd2 {[%clk 00:00:38]} {[%emt 00:00:19]} Ke7 {[%clk 00:05:55]} {[%emt 00:00:27]}
49. Ne1 {[%clk 00:00:37]} {[%emt 00:00:16]} Bb4 {[%clk 00:05:21]} {[%emt
00:00:49]} 50. Re2 {[%clk 00:00:36]} {[%emt 00:00:17]} Bxe1 {[%clk 00:05:21]}
{[%emt 00:00:14]} 51. Rxe1 {[%clk 00:00:49]} {[%emt 00:00:02]} Rh2 {[%clk
00:05:20]} {[%emt 00:00:16]} 52. Rb1 {[%clk 00:00:49]} {[%emt 00:00:15]} Rb4
{[%clk 00:04:50]} {[%emt 00:00:45]} 53. Bd5 {[%clk 00:01:03]} {[%emt 00:00:01]}
Re2 {[%clk 00:04:27]} {[%emt 00:00:37]} 54. Rc1 {[%clk 00:00:30]} {[%emt
00:00:49]} Rbxb2+ {[%clk 00:04:23]} {[%emt 00:00:19]} 55. Ka3 {[%clk 00:00:43]}
{[%emt 00:00:02]} Rec2 {[%clk 00:04:24]} {[%emt 00:00:14]} 56. Rh1 {[%clk
00:00:35]} {[%emt 00:00:23]} Rb8 {[%clk 00:04:26]} {[%emt 00:00:12]} 0-1

[Event "BPB Limburg Open 2019 Group A"]
[Site "Maastricht, Netherlands"]
[Date "2019.06.07"]
[Round "1.3"]
[White "Van Foreest, Jorden"]
[Black "Van Dael, Siem"]
[Result "1-0"]
[TimeControl "2h + 15 sec/move"]
[WhiteFideId "1039784"]
[BlackFideId "1049771"]
[WhiteElo "2610"]
[BlackElo "2290"]

1. e4 {[%clk 02:00:22]} {[%emt 00:00:07]} c5 {[%clk 02:00:20]} {[%emt
00:00:11]} 2. Nf3 {[%clk 02:00:19]} {[%emt 00:00:18]} d6 {[%clk 01:58:45]}
{[%emt 00:01:50]} 3. d4 {[%clk 02:00:06]} {[%emt 00:00:27]} cxd4 {[%clk
01:58:54]} {[%emt 00:00:06]} 4. Nxd4 {[%clk 02:00:04]} {[%emt 00:00:17]} Nf6
{[%clk 01:59:04]} {[%emt 00:00:05]} 5. Nc3 {[%clk 02:00:05]} {[%emt 00:00:13]}
g6 {[%clk 01:59:00]} {[%emt 00:00:19]} 6. Be3 {[%clk 01:59:21]} {[%emt
00:00:59]} Bg7 {[%clk 01:59:06]} {[%emt 00:00:09]} 7. f3 {[%clk 01:59:25]}
{[%emt 00:00:11]} O-O {[%clk 01:59:13]} {[%emt 00:00:09]} 8. Qd2 {[%clk
01:59:31]} {[%emt 00:00:09]} Nc6 {[%clk 01:59:22]} {[%emt 00:00:06]} 9. g4
{[%clk 01:57:28]} {[%emt 00:02:18]} Be6 {[%clk 01:57:22]} {[%emt 00:02:16]} 10.
O-O-O {[%clk 01:56:20]} {[%emt 00:01:22]} Nxd4 {[%clk 01:57:28]} {[%emt
00:00:10]} 11. Bxd4 {[%clk 01:56:22]} {[%emt 00:00:13]} Qa5 {[%clk 01:57:28]}
{[%emt 00:00:16]} 12. Kb1 {[%clk 01:52:25]} {[%emt 00:04:12]} Rfc8 {[%clk
01:57:36]} {[%emt 00:00:06]} 13. a3 {[%clk 01:48:38]} {[%emt 00:04:02]} Rab8
{[%clk 01:53:47]} {[%emt 00:04:04]} 14. h4 {[%clk 01:46:24]} {[%emt 00:02:29]}
b5 {[%clk 01:51:02]} {[%emt 00:03:00]} 15. Nd5 {[%clk 01:46:27]} {[%emt
00:00:11]} Qxd2 {[%clk 01:51:06]} {[%emt 00:00:11]} 16. Rxd2 {[%clk 01:46:40]}
{[%emt 00:00:03]} Bxd5 {[%clk 01:42:24]} {[%emt 00:08:57]} 17. exd5 {[%clk
01:44:53]} {[%emt 00:02:02]} a5 {[%clk 01:38:35]} {[%emt 00:04:04]} 18. h5
{[%clk 01:41:45]} {[%emt 00:03:22]} Nd7 {[%clk 01:32:44]} {[%emt 00:06:06]} 19.
g5 {[%clk 01:37:58]} {[%emt 00:04:01]} Ne5 {[%clk 01:29:23]} {[%emt 00:03:37]}
20. hxg6 {[%clk 01:34:10]} {[%emt 00:04:03]} Nxf3 {[%clk 01:17:06]} {[%emt
00:12:33]} 21. gxf7+ {[%clk 01:29:19]} {[%emt 00:05:06]} Kf8 {[%clk 01:09:21]}
{[%emt 00:08:00]} 22. Bxg7+ {[%clk 01:28:29]} {[%emt 00:01:05]} Kxg7 {[%clk
01:08:24]} {[%emt 00:01:11]} 23. Rg2 {[%clk 01:19:02]} {[%emt 00:09:42]} Rh8
{[%clk 00:57:12]} {[%emt 00:11:28]} 24. Bd3 {[%clk 01:14:28]} {[%emt 00:04:49]}
Ne5 {[%clk 00:48:29]} {[%emt 00:08:58]} 25. Bf5 {[%clk 01:13:25]} {[%emt
00:01:18]} Kxf7 {[%clk 00:40:29]} {[%emt 00:08:16]} 26. Rgh2 {[%clk 01:13:33]}
{[%emt 00:00:06]} Rbf8 {[%clk 00:26:41]} {[%emt 00:14:02]} 27. g6+ {[%clk
01:10:57]} {[%emt 00:02:51]} Kg7 {[%clk 00:25:48]} {[%emt 00:01:08]} 28. Rxh7+
{[%clk 01:10:41]} {[%emt 00:00:31]} Rxh7 {[%clk 00:25:55]} {[%emt 00:00:08]} 29.
Rxh7+ {[%clk 01:10:54]} {[%emt 00:00:02]} Kf6 {[%clk 00:25:44]} {[%emt
00:00:26]} 30. Be4 {[%clk 01:10:33]} {[%emt 00:00:36]} Rg8 {[%clk 00:25:00]}
{[%emt 00:00:59]} 31. c3 {[%clk 01:04:15]} {[%emt 00:06:32]} Nxg6 {[%clk
00:20:02]} {[%emt 00:05:12]} 32. Rh6 {[%clk 01:03:04]} {[%emt 00:01:26]} Kg5
{[%clk 00:20:04]} {[%emt 00:00:14]} 33. Rxg6+ {[%clk 01:02:48]} {[%emt
00:00:31]} Rxg6 {[%clk 00:20:13]} {[%emt 00:00:06]} 34. Bxg6 {[%clk 01:02:59]}
{[%emt 00:00:03]} Kxg6 {[%clk 00:20:23]} {[%emt 00:00:06]} 35. b4 {[%clk
01:03:12]} {[%emt 00:00:02]} axb4 {[%clk 00:19:57]} {[%emt 00:00:41]} 36. c4
{[%clk 01:02:16]} {[%emt 00:01:11]} 1-0

[Event "BPB Limburg Open 2019 Group A"]
[Site "Maastricht, Netherlands"]
[Date "2019.06.07"]
[Round "1.4"]
[White "Suvorov, Luca"]
[Black "Van Wely, Loek"]
[Result "0-1"]
[TimeControl "2h + 15 sec/move"]
[WhiteFideId "12977071"]
[BlackFideId "1000268"]
[WhiteElo "2276"]
[BlackElo "2604"]

1. d4 {[%clk 02:00:28]} Nf6 {[%clk 02:00:22]} {[%emt 00:00:08]} 2. c4 {[%clk
02:00:39]} {[%emt 00:00:04]} g6 {[%clk 02:00:21]} {[%emt 00:00:17]} 3. f3
{[%clk 02:00:10]} {[%emt 00:00:44]} c5 {[%clk 01:57:47]} {[%emt 00:02:49]} 4.
d5 {[%clk 01:59:51]} {[%emt 00:00:34]} d6 {[%clk 01:57:12]} {[%emt 00:00:50]} 5.
e4 {[%clk 01:59:14]} {[%emt 00:00:52]} Bg7 {[%clk 01:56:46]} {[%emt 00:00:41]}
6. Ne2 {[%clk 01:57:02]} {[%emt 00:02:27]} e6 {[%clk 01:54:21]} {[%emt
00:02:40]} 7. Nec3 {[%clk 01:55:50]} {[%emt 00:01:27]} O-O {[%clk 01:50:45]}
{[%emt 00:03:51]} 8. Be3 {[%clk 01:48:25]} {[%emt 00:07:40]} e5 {[%clk
01:46:20]} {[%emt 00:04:40]} 9. g4 {[%clk 01:33:24]} {[%emt 00:15:15]} h5
{[%clk 01:45:42]} {[%emt 00:00:53]} 10. h3 {[%clk 01:31:45]} {[%emt 00:01:55]}
Nbd7 {[%clk 01:40:11]} {[%emt 00:05:46]} 11. Bd3 {[%clk 01:29:46]} {[%emt
00:02:14]} a6 {[%clk 01:39:09]} {[%emt 00:01:17]} 12. a4 {[%clk 01:27:21]}
{[%emt 00:02:40]} Nh7 {[%clk 01:38:16]} {[%emt 00:01:07]} 13. Qd2 {[%clk
01:12:58]} {[%emt 00:14:39]} h4 {[%clk 01:35:35]} {[%emt 00:02:55]} 14. Rg1
{[%clk 01:07:38]} {[%emt 00:05:35]} Bf6 {[%clk 01:35:39]} {[%emt 00:00:11]} 15.
g5 {[%clk 01:04:09]} {[%emt 00:03:44]} Bg7 {[%clk 01:34:46]} {[%emt 00:01:08]}
16. Qf2 {[%clk 01:00:53]} {[%emt 00:03:31]} f6 {[%clk 01:33:45]} {[%emt
00:01:17]} 17. gxf6 {[%clk 00:56:49]} {[%emt 00:04:20]} Qxf6 {[%clk 01:33:47]}
{[%emt 00:00:13]} 18. Nd2 {[%clk 00:51:16]} {[%emt 00:05:48]} g5 {[%clk
01:33:14]} {[%emt 00:00:47]} 19. Qg2 {[%clk 00:45:34]} {[%emt 00:05:58]} Qh6
{[%clk 01:17:09]} {[%emt 00:16:21]} 20. Nd1 {[%clk 00:20:36]} {[%emt 00:25:13]}
Ndf6 {[%clk 01:14:51]} {[%emt 00:02:32]} 21. Bxg5 {[%clk 00:19:14]} {[%emt
00:01:37]} Nxg5 {[%clk 01:13:23]} {[%emt 00:01:43]} 22. Qxg5 {[%clk 00:19:23]}
{[%emt 00:00:06]} Qxg5 {[%clk 01:11:45]} {[%emt 00:01:53]} 23. Rxg5 {[%clk
00:19:36]} {[%emt 00:00:02]} Bxh3 {[%clk 01:01:38]} {[%emt 00:10:22]} 24. Ne3
{[%clk 00:18:28]} {[%emt 00:01:23]} Kf7 {[%clk 01:01:44]} {[%emt 00:00:09]} 25.
Nf5 {[%clk 00:16:12]} {[%emt 00:02:30]} Bxf5 {[%clk 01:01:51]} {[%emt
00:00:08]} 26. exf5 {[%clk 00:14:30]} {[%emt 00:01:58]} Bh6 {[%clk 01:01:05]}
{[%emt 00:01:01]} 27. Rg6 {[%clk 00:13:54]} {[%emt 00:00:51]} Bxd2+ {[%clk
01:00:02]} {[%emt 00:01:18]} 28. Kxd2 {[%clk 00:14:07]} {[%emt 00:00:01]} Rh8
{[%clk 00:59:12]} {[%emt 00:01:04]} 29. Rh1 {[%clk 00:12:57]} {[%emt 00:01:25]}
Rag8 {[%clk 00:54:20]} {[%emt 00:05:07]} 30. a5 {[%clk 00:12:07]} {[%emt
00:01:06]} Rh5 {[%clk 00:50:57]} {[%emt 00:03:36]} 31. b3 {[%clk 00:10:55]}
{[%emt 00:01:28]} Rb8 {[%clk 00:45:22]} {[%emt 00:05:50]} 32. Kc3 {[%clk
00:08:06]} {[%emt 00:03:04]} b6 {[%clk 00:45:06]} {[%emt 00:00:32]} 33. axb6
{[%clk 00:08:19]} {[%emt 00:00:02]} Rxb6 {[%clk 00:45:15]} {[%emt 00:00:05]} 34.
Bc2 {[%clk 00:06:29]} {[%emt 00:02:05]} Rb8 {[%clk 00:44:49]} {[%emt 00:00:41]}
35. Rh2 {[%clk 00:05:45]} {[%emt 00:00:59]} a5 {[%clk 00:43:35]} {[%emt
00:01:29]} 36. Bd3 {[%clk 00:05:07]} {[%emt 00:00:52]} Rg8 {[%clk 00:41:40]}
{[%emt 00:02:09]} 37. Kd2 {[%clk 00:04:19]} {[%emt 00:01:04]} Rxg6 {[%clk
00:39:28]} {[%emt 00:02:27]} 38. fxg6+ {[%clk 00:04:33]} {[%emt 00:00:02]} Kg7
{[%clk 00:39:37]} {[%emt 00:00:06]} 39. Ke3 {[%clk 00:02:50]} {[%emt 00:01:58]}
Ng8 {[%clk 00:35:09]} {[%emt 00:04:42]} 40. f4 {[%clk 00:01:17]} {[%emt
00:01:48]} Nf6 {[%clk 00:35:20]} {[%emt 00:00:05]} 41. Rh3 {[%clk 00:00:38]}
{[%emt 00:00:54]} Rh8 {[%clk 00:32:34]} {[%emt 00:03:00]} 42. Bf5 {[%clk
00:00:24]} {[%emt 00:00:29]} e4 {[%clk 00:29:55]} {[%emt 00:02:54]} 43. Rh1
{[%clk 00:00:23]} {[%emt 00:00:16]} Rb8 {[%clk 00:29:42]} {[%emt 00:00:28]} 44.
Rxh4 {[%clk 00:00:22]} {[%emt 00:00:17]} Rxb3+ {[%clk 00:29:50]} {[%emt
00:00:07]} 45. Ke2 {[%clk 00:00:30]} {[%emt 00:00:07]} a4 {[%clk 00:28:30]}
{[%emt 00:01:36]} 46. Rh1 {[%clk 00:00:32]} {[%emt 00:00:12]} a3 {[%clk
00:28:10]} {[%emt 00:00:35]} 47. Ra1 {[%clk 00:00:22]} {[%emt 00:00:26]} Nh5
{[%clk 00:27:32]} {[%emt 00:00:53]} 48. Kd2 {[%clk 00:00:25]} {[%emt 00:00:12]}
Ng3 {[%clk 00:27:30]} {[%emt 00:00:16]} 49. Bg4 {[%clk 00:00:17]} {[%emt
00:00:23]} Kxg6 {[%clk 00:26:00]} {[%emt 00:01:45]} 50. Kc2 {[%clk 00:00:17]}
{[%emt 00:00:15]} Rd3 {[%clk 00:24:45]} {[%emt 00:01:30]} 51. Rg1 {[%clk
00:00:30]} {[%emt 00:00:03]} Kf6 {[%clk 00:24:03]} {[%emt 00:00:56]} 0-1